fUSD/lending_fUSD_20250310
["ID","MTS","AMOUNT","RATE_DAILY","PERIOD"]
[355821858,1741618672703,500.0,0.00027782,120]
[355821859,1741618672763,3268.27,0.00027782,120]
[355821860,1741618672820,3356.54,0.00027782,120]
[355821861,1741618672884,500.0,0.00027782,120]
[355821862,1741618672943,3268.27,0.00027782,120]
[355821863,1741618672997,500.0,0.00027782,120]
[355821864,1741618673050,3356.54,0.00027782,120]
[355821865,1741618673210,3268.27,0.00027782,120]
[355821866,1741618673264,3356.54,0.00027782,120]
[355821867,1741618673320,500.0,0.00027782,120]
[355821868,1741618673380,3268.27,0.00027782,120]
[355821869,1741618673721,3356.54,0.00027782,120]
[355821870,1741618673780,3268.27,0.00027782,120]
[355821871,1741618673842,500.0,0.00027782,120]
[355821872,1741618673900,3356.54,0.00027782,120]
[355821873,1741618673971,3268.27,0.00027782,120]
[355821874,1741618674082,500.0,0.00027782,120]
[355821875,1741618674159,3268.27,0.00027782,120]
[355821876,1741618674216,500.0,0.00027782,120]
[355821877,1741618674281,3356.54,0.00027782,120]
[355821878,1741618674337,3268.27,0.00027782,120]
[355821879,1741618674392,500.0,0.00027782,120]
[355821880,1741618674458,3268.27,0.00027782,120]
[355821881,1741618674509,500.0,0.00027782,120]
[355821882,1741618674564,3268.27,0.00027782,120]
[355821883,1741618674620,3356.54,0.00027782,120]
[355821884,1741618674677,500.0,0.00027782,120]
[355821885,1741618674741,3268.27,0.00027782,120]
[355821886,1741618674822,3356.54,0.00027782,120]
[355821887,1741618674896,500.0,0.00027782,120]
[355821888,1741618675044,3268.27,0.00027782,120]
[355821889,1741618675107,3356.54,0.00027782,120]
[355821890,1741618675162,500.0,0.00027782,120]
[355821891,1741618675312,3268.27,0.00027782,120]
[355821892,1741618675400,3356.54,0.00027782,120]
[355821893,1741618675499,500.0,0.00027782,120]
[355821894,1741618675590,553.66,0.00027782,120]
[355821895,1741618675684,293.69997527,0.00027782,120]
[355821896,1741618675741,3356.54,0.00027782,120]
[355821897,1741618675794,500.0,0.00027782,120]
[355821898,1741618675847,553.66,0.00027782,120]
[355821899,1741618675900,3268.27,0.00027782,120]
[355821900,1741618675954,500.0,0.00027782,120]
[355821901,1741618676108,500.0,0.00027782,120]
[355821902,1741618676165,3356.54,0.00027782,120]
[355821903,1741618676220,500.0,0.00027782,120]
[355821904,1741618676274,553.66,0.00027782,120]
[355821905,1741618676327,500.0,0.00027782,120]
[355821906,1741618676385,3268.27,0.00027782,120]
[355821907,1741618676440,500.0,0.00027782,120]
[355821908,1741618676497,500.0,0.00027782,120]
[355821909,1741618676553,500.0,0.00027782,120]
[355821910,1741618676611,500.0,0.00027782,120]
[355821911,1741618676667,3356.54,0.00027782,120]
[355821912,1741618676726,553.66,0.00027782,120]
[355821913,1741618676784,500.0,0.00027782,120]
[355821914,1741618676842,500.0,0.00027782,120]
[355821915,1741618676895,3268.27,0.00027782,120]
[355821916,1741618676999,500.0,0.00027782,120]
[355821917,1741618677100,1187.62,0.00027782,120]
[355821918,1741618677160,500.0,0.00027782,120]
[355821919,1741618677218,500.0,0.00027782,120]
[355821920,1741618677273,553.66,0.00027782,120]
[355821921,1741618677328,500.0,0.00027782,120]
[355821922,1741618677385,3356.54,0.00027782,120]
[355821923,1741618677439,500.0,0.00027782,120]
[355821924,1741618677492,3268.27,0.00027782,120]
[355821925,1741618677550,1187.62,0.00027782,120]
[355821926,1741618677604,500.0,0.00027782,120]
[355821927,1741618677657,500.0,0.00027782,120]
[355821928,1741618677709,500.0,0.00027782,120]
[355821929,1741618677762,553.66,0.00027782,120]
[355821930,1741618677818,500.0,0.00027782,120]
[355821931,1741618677874,3356.54,0.00027782,120]
[355821932,1741618677927,3268.27,0.00027782,120]
[355821933,1741618677980,500.0,0.00027782,120]
[355821934,1741618678033,500.0,0.00027782,120]
[355821935,1741618678091,500.0,0.00027782,120]
[355821936,1741618678149,500.0,0.00027782,120]
[355821937,1741618678202,1187.62,0.00027782,120]
[355821938,1741618678252,553.66,0.00027782,120]
[355821939,1741618678307,3356.54,0.00027782,120]
[355821940,1741618678363,3268.33614919,0.00027782,120]
[355821941,1741618678419,500.0,0.00027782,120]
[355821942,1741618678474,500.0,0.00027782,120]
[355821943,1741618678528,500.0,0.00027782,120]
[355821944,1741618678588,500.0,0.00027782,120]
[355821945,1741618678880,500.0,0.00027782,120]
[355821946,1741618678938,1187.62,0.00027782,120]
[355821947,1741618678996,553.66,0.00027782,120]
[355821948,1741618679049,3356.54,0.00027782,120]
[355821949,1741618679106,500.0,0.00027782,120]
[355821950,1741618679169,500.0,0.00027782,120]
[355821951,1741618679226,500.0,0.00027782,120]
[355821952,1741618679280,548.09418534,0.00027782,120]
[355821953,1741618679335,500.0,0.00027782,120]
[355821954,1741618679388,1187.62,0.00027782,120]
[355821955,1741618679442,553.66,0.00027782,120]
[355821956,1741618679578,3356.54,0.00027782,120]
[355821957,1741618679642,500.0,0.00027782,120]
[355821958,1741618679700,500.0,0.00027782,120]
[355821959,1741618679754,500.0,0.00027782,120]
[355821960,1741618679806,1187.62,0.00027782,120]
[355821961,1741618679856,500.0,0.00027782,120]
[355821962,1741618679909,553.66,0.00027782,120]
[355821963,1741618679963,500.0,0.00027782,120]
[355821964,1741618680027,3356.54,0.00027782,120]
[355821965,1741618680084,500.0,0.00027782,120]
[355821966,1741618680147,1187.62,0.00027782,120]
[355821967,1741618680208,500.0,0.00027782,120]
[355821968,1741618680278,500.0,0.00027782,120]
[355821969,1741618680351,553.66,0.00027782,120]
[355821970,1741618680427,500.0,0.00027782,120]
[355821971,1741618680499,3356.54,0.00027782,120]
[355821972,1741618680569,500.0,0.00027782,120]
[355821973,1741618680644,1187.62,0.00027782,120]
[355821974,1741618680711,500.0,0.00027782,120]
[355821975,1741618680779,500.0,0.00027782,120]
[355821976,1741618680846,553.66,0.00027782,120]
[355821977,1741618680913,1187.62,0.00027782,120]
[355821978,1741618680977,167.5271739,0.00027782,120]
[355821979,1741618681037,508.10437162,0.00027782,120]
[355821980,1741618681099,3356.60713493,0.00027782,120]
[355821981,1741618681168,500.0,0.00027782,120]
[355821982,1741618681230,1187.62,0.00027782,120]
[355821983,1741618681287,362.96,0.00027782,120]
[355821984,1741618681350,553.66,0.00027782,120]
[355821985,1741618681409,500.0,0.00027782,120]
[355821986,1741618681560,1187.62,0.00027782,120]
[355821987,1741618681627,553.66,0.00027782,120]
[355821988,1741618681688,500.0,0.00027782,120]
[355821989,1741618681747,1187.62,0.00027782,120]
[355821990,1741618681814,553.66,0.00027782,120]
[355821991,1741618681878,500.0,0.00027782,120]
[355821992,1741618681939,500.0,0.00027782,120]
[355821993,1741618682563,1187.62,0.00027782,120]
[355821994,1741618682635,553.66,0.00027782,120]
[355821995,1741618682694,500.0,0.00027782,120]
[355821996,1741618682827,1187.62,0.00027782,120]
[355821997,1741618682908,553.66,0.00027782,120]
[355821998,1741618682977,505.97041569,0.00027782,120]
[355821999,1741618683035,500.0,0.00027782,120]
[355822000,1741618683097,1187.62,0.00027782,120]
[355822001,1741618683451,553.66,0.00027782,120]
[355822002,1741618683531,500.0,0.00027782,120]
[355822003,1741618683694,1187.62,0.00027782,120]
[355822004,1741618683754,553.66,0.00027782,120]
[355822005,1741618683817,500.0,0.00027782,120]
[355822006,1741618683990,1187.62,0.00027782,120]
[355822007,1741618684052,553.66,0.00027782,120]
[355822008,1741618684223,502.14459757,0.00027782,120]
[355822009,1741618684387,1187.62,0.00027782,120]
[355822010,1741618684446,553.66,0.00027782,120]
[355822011,1741618684510,1187.62,0.00027782,120]
[355822012,1741618684597,553.66,0.00027782,120]
[355822013,1741618684726,1187.62,0.00027782,120]
[355822014,1741618684787,553.66,0.00027782,120]
[355822015,1741618684853,1187.62,0.00027782,120]
[355822016,1741618685009,553.82523447,0.00027782,120]
[355822017,1741618685067,1187.62,0.00027782,120]
[355822018,1741618685326,1187.62,0.00027782,120]
[355822019,1741618685467,1187.84,0.00027782,120]
[355822020,1741618685546,369.33031553,0.00027782,120]
[355822021,1741618686131,500.0,0.00027782,120]
[355822022,1741618686192,203.26580104,0.00027782,120]
[355822023,1741618686809,500.0,0.00027782,120]
[355822024,1741618687051,500.0,0.00027782,120]
[355822025,1741618687406,8060.4,0.00027782,120]
[355822026,1741618687480,522.59707685,0.00027782,120]
[355822027,1741618687625,500.0,0.00027782,120]
[355822028,1741618687685,506.80329797,0.00027782,120]
[355822029,1741618687783,3652.66,0.00027782,120]
[355822030,1741618687841,8060.4,0.00027782,120]
[355822031,1741618687895,1564.16,0.00027782,120]
[355822032,1741618688046,4127.37,0.00027782,120]
[355822033,1741618688359,500.0,0.00027782,120]
[355822034,1741618688413,3652.66,0.00027782,120]
[355822035,1741618688468,1564.16,0.00027782,120]
[355822036,1741618688525,8060.4,0.00027782,120]
[355822037,1741618688579,500.0,0.00027782,120]
[355822038,1741618688688,4127.37,0.00027782,120]
[355822039,1741618688795,3652.66,0.00027782,120]
[355822040,1741618688851,500.0,0.00027782,120]
[355822041,1741618688906,1564.16,0.00027782,120]
[355822042,1741618688961,500.0,0.00027782,120]
[355822043,1741618689016,8060.4,0.00027782,120]
[355822044,1741618689072,926.31,0.00027782,120]
[355822045,1741618689131,4127.37,0.00027782,120]
[355822046,1741618689198,500.0,0.00027782,120]
[355822047,1741618689252,3652.66,0.00027782,120]
[355822048,1741618689307,1564.16,0.00027782,120]
[355822049,1741618689366,8060.4,0.00027782,120]
[355822050,1741618689422,926.31,0.00027782,120]
[355822051,1741618689480,4127.37,0.00027782,120]
[355822052,1741618689540,500.0,0.00027782,120]
[355822053,1741618689604,3652.66,0.00027782,120]
[355822054,1741618689669,1564.16,0.00027782,120]
[355822055,1741618689726,500.0,0.00027782,120]
[355822056,1741618689795,926.31,0.00027782,120]
[355822057,1741618689859,4127.37,0.00027782,120]
[355822058,1741618689944,500.0,0.00027782,120]
[355822059,1741618690020,1564.16,0.00027782,120]
[355822060,1741618690085,926.31,0.00027782,120]
[355822061,1741618690161,4127.37,0.00027782,120]
[355822062,1741618690278,500.0,0.00027782,120]
[355822063,1741618690334,1564.16,0.00027782,120]
[355822064,1741618690393,926.31,0.00027782,120]
[355822065,1741618690451,4127.37,0.00027782,120]
[355822066,1741618690510,500.0,0.00027782,120]
[355822067,1741618690568,3652.66,0.00027782,120]
[355822068,1741618690632,1564.16,0.00027782,120]
[355822069,1741618690691,4127.37,0.00027782,120]
[355822070,1741618690745,8060.4,0.00027782,120]
[355822071,1741618690802,500.0,0.00027782,120]
[355822072,1741618690949,3652.66,0.00027782,120]
[355822073,1741618691029,4127.37,0.00027782,120]
[355822074,1741618691085,8060.4,0.00027782,120]
[355822075,1741618691150,500.0,0.00027782,120]
[355822076,1741618691212,1564.16,0.00027782,120]
[355822077,1741618691273,8060.4,0.00027782,120]
[355822078,1741618691333,500.0,0.00027782,120]
[355822079,1741618691401,500.0,0.00027782,120]
[355822080,1741618691466,1564.16,0.00027782,120]
[355822081,1741618691527,8060.4,0.00027782,120]
[355822082,1741618691584,500.0,0.00027782,120]
[355822083,1741618691650,4127.37,0.00027782,120]
[355822084,1741618691708,500.0,0.00027782,120]
[355822085,1741618691763,1564.16,0.00027782,120]
[355822086,1741618691823,500.0,0.00027782,120]
[355822087,1741618691885,8060.4,0.00027782,120]
[355822088,1741618691941,3652.66,0.00027782,120]
[355822089,1741618691997,4127.37,0.00027782,120]
[355822090,1741618692056,1564.16,0.00027782,120]
[355822091,1741618692114,500.0,0.00027782,120]
[355822092,1741618692181,500.0,0.00027782,120]
[355822093,1741618692271,8060.4,0.00027782,120]
[355822094,1741618692335,4127.37,0.00027782,120]
[355822095,1741618692415,3652.66,0.00027782,120]
[355822096,1741618693294,1564.16,0.00027782,120]
[355822097,1741618693355,500.0,0.00027782,120]
[355822098,1741618693409,500.0,0.00027782,120]
[355822099,1741618693463,4127.37,0.00027782,120]
[355822100,1741618693517,8060.4,0.00027782,120]
[355822101,1741618693599,3652.66,0.00027782,120]
[355822102,1741618693658,1564.16,0.00027782,120]
[355822103,1741618693716,500.0,0.00027782,120]
[355822104,1741618693775,500.0,0.00027782,120]
[355822105,1741618693833,500.0,0.00027782,120]
[355822106,1741618693892,4127.37,0.00027782,120]
[355822107,1741618693948,3652.66,0.00027782,120]
[355822108,1741618694004,1564.16,0.00027782,120]
[355822109,1741618694073,500.0,0.00027782,120]
[355822110,1741618694143,8060.4,0.00027782,120]
[355822111,1741618694201,500.0,0.00027782,120]
[355822112,1741618694262,500.0,0.00027782,120]
[355822113,1741618694321,4127.37,0.00027782,120]
[355822114,1741618694380,1564.16,0.00027782,120]
[355822115,1741618694436,3652.66,0.00027782,120]
[355822116,1741618694497,500.0,0.00027782,120]
[355822117,1741618694552,8060.4,0.00027782,120]
[355822118,1741618694608,500.0,0.00027782,120]
[355822119,1741618694664,580.7268058,0.00027782,120]
[355822120,1741618694721,4127.37,0.00027782,120]
[355822121,1741618694776,926.31,0.00027782,120]
[355822122,1741618694830,1564.16,0.00027782,120]
[355822123,1741618694886,3652.66,0.00027782,120]
[355822124,1741618694949,500.0,0.00027782,120]
[355822125,1741618695004,375.93921888,0.00027782,120]
[355822126,1741618695067,8060.4,0.00027782,120]
[355822127,1741618695152,1564.16,0.00027782,120]
[355822128,1741618695213,4127.37,0.00027782,120]
[355822129,1741618695268,926.31,0.00027782,120]
[355822130,1741618695329,3652.66,0.00027782,120]
[355822131,1741618695397,500.0,0.00027782,120]
[355822132,1741618695474,1564.16,0.00027782,120]
[355822133,1741618695543,926.31,0.00027782,120]
[355822134,1741618695609,4127.37,0.00027782,120]
[355822135,1741618695678,500.0,0.00027782,120]
[355822136,1741618695747,8060.4,0.00027782,120]
[355822137,1741618695804,926.31,0.00027782,120]
[355822138,1741618695862,4127.37,0.00027782,120]
[355822139,1741618695951,308.82885818,0.00027782,120]
[355822140,1741618696012,3652.66,0.00027782,120]
[355822141,1741618696076,926.31,0.00027782,120]
[355822142,1741618696140,4127.37,0.00027782,120]
[355822143,1741618696200,8060.4,0.00027782,120]
[355822144,1741618696257,1564.16,0.00027782,120]
[355822145,1741618696332,3652.66,0.00027782,120]
[355822146,1741618696396,8060.4,0.00027782,120]
[355822147,1741618696452,926.31,0.00027782,120]
[355822148,1741618696513,1054.21,0.00027782,120]
[355822149,1741618696571,4127.37,0.00027782,120]
[355822150,1741618696634,1564.16,0.00027782,120]
[355822151,1741618696698,3652.66,0.00027782,120]
[355822152,1741618696754,8060.4,0.00027782,120]
[355822153,1741618696809,1054.21,0.00027782,120]
[355822154,1741618696881,926.31,0.00027782,120]
[355822155,1741618696953,4127.37,0.00027782,120]
[355822156,1741618697054,1564.16,0.00027782,120]
[355822157,1741618697142,2108.16305956,0.00027782,120]
[355822161,1741619150391,-301.0,8.219e-05,2]
[355822163,1741619350621,-357.63,8.219e-05,2]
[355822164,1741619350643,-150.0,8.253e-05,2]
[355822165,1741619350668,-9492.37,8.274e-05,2]
[355822166,1741619351536,-2221.28,8.274e-05,2]
[355822167,1741619351560,-994.8,8.281e-05,2]
[355822168,1741619351584,-550.0,8.288e-05,2]
[355822169,1741619351607,-550.0,8.519e-05,2]
[355822170,1741619351631,-162.61,8.622e-05,2]
[355822171,1741619351659,-225.52,8.727e-05,2]
[355822172,1741619351685,-5295.79,8.736e-05,2]
[355822173,1741619352992,-10000.0,8.736e-05,2]
[355822174,1741619353639,-10000.0,8.736e-05,2]
[355822175,1741619354666,-10000.0,8.736e-05,2]
[355822176,1741619355722,-10000.0,8.736e-05,2]
[355822177,1741619356624,-10000.0,8.736e-05,2]
[355822178,1741619357554,-7121.59341178,8.736e-05,2]
[355822179,1741619357581,-225.52,8.755e-05,2]
[355822180,1741619357606,-225.52,8.782e-05,2]
[355822181,1741619357628,-2427.36658822,8.782e-05,2]
[355822182,1741619358959,-7572.62341178,8.782e-05,2]
[355822183,1741619358983,-2427.37658822,8.782e-05,2]
[355822194,1741619369145,-4400.05341178,8.782e-05,2]
[355822195,1741619369173,-538.81,8.782e-05,2]
[355822202,1741619431855,-384.20133856,8.81e-05,2]
[355822203,1741619431868,-291.57693832,8.81e-05,2]
[355822204,1741619432127,-271.73172312,8.81e-05,2]
[355822205,1741619432137,-18.16369789,8.81e-05,2]
[355822206,1741619436691,-849.23630211,8.81e-05,2]
[355822207,1741619436702,-550.0,8.81e-05,2]
[355822208,1741619436716,-225.52,8.81e-05,2]
[355822209,1741619436727,-250.0,8.825e-05,2]
[355822210,1741619436738,-48.07543162,8.837e-05,2]
[355822218,1741619437916,-177.44456838,8.837e-05,2]
[355822219,1741619437926,-225.52,8.865e-05,2]
[355822220,1741619437935,-225.52,8.893e-05,2]
[355822221,1741619437945,-225.52,8.92e-05,2]
[355822222,1741619437954,-225.52,8.948e-05,2]
[355822223,1741619437966,-225.52,8.975e-05,2]
[355822224,1741619437976,-550.0,9e-05,2]
[355822225,1741619437985,-225.52,9.003e-05,2]
[355822226,1741619437995,-225.52,9.03e-05,2]
[355822227,1741619438005,-150.0,9.041e-05,2]
[355822228,1741619438016,-550.0,9.041e-05,2]
[355822229,1741619438027,-150.0,9.041e-05,2]
[355822230,1741619438036,-225.52,9.058e-05,2]
[355822231,1741619438046,-225.52,9.086e-05,2]
[355822232,1741619438056,-159.67203,9.1e-05,2]
[355822233,1741619438066,-225.52,9.113e-05,2]
[355822234,1741619438076,-300.0,9.14e-05,2]
[355822235,1741619438086,-225.52,9.141e-05,2]
[355822236,1741619438096,-225.52,9.168e-05,2]
[355822237,1741619438106,-225.52,9.196e-05,2]
[355822238,1741619438116,-225.52,9.223e-05,2]
[355822239,1741619438127,-225.52,9.251e-05,2]
[355822240,1741619438136,-936.2811,9.268e-05,2]
[355822241,1741619438146,-225.0,9.268e-05,2]
[355822242,1741619438156,-994.8,9.316e-05,2]
[355822243,1741619438166,-159.67203,9.339e-05,2]
[355822244,1741619438176,-967.13587713,9.369e-05,2]
[355822245,1741619438768,-493.78504282,9.369e-05,2]
[355822247,1741619440125,-1694.07382964,9.369e-05,2]
[355822248,1741619440137,-1173.70891906,9.369e-05,2]
[355822249,1741619440148,-7790.306786,9.369e-05,2]
[355822250,1741619440258,-812.98121701,9.369e-05,2]
[355822253,1741619440319,-84.34227012,9.369e-05,2]
[355822254,1741619440334,-2004.01084872,9.369e-05,2]
[355822255,1741619440346,-268.64757839,9.369e-05,2]
[355822256,1741619440360,-3129.08136239,9.369e-05,2]
[355822257,1741619440372,-53290.92289808,9.369e-05,2]
[355822258,1741619440382,-167.42,9.403e-05,2]
[355822259,1741619440392,-1062.0,9.445e-05,2]
[355822260,1741619440403,-66888.29662938,9.5e-05,3]
[355822261,1741619440414,-1003.0457,9.513e-05,2]
[355822262,1741619440424,-14520.37043943,9.555e-05,2]
[355822263,1741619440435,-500.0,9.562e-05,2]
[355822264,1741619440446,-150.0,9.613e-05,7]
[355822265,1741619440459,-550.0,9.691e-05,2]
[355822266,1741619440469,-150.0,9.691e-05,2]
[355822267,1741619440479,-2500.0,9.7e-05,2]
[355822268,1741619440489,-11558.06229246,9.761e-05,2]
[355822269,1741619440499,-250.0,9.787e-05,2]
[355822270,1741619440509,-509.7188,9.8e-05,2]
[355822271,1741619440520,-12196.6989,9.8e-05,2]
[355822272,1741619440530,-502.98547349,9.873e-05,2]
[355822274,1741619440539,-262.19097513,9.873e-05,2]
[355822275,1741619440549,-161.19490282,9.873e-05,2]
[355822276,1741619440559,-501.0441687,9.873e-05,2]
[355822277,1741619440570,-1012.0,9.878e-05,2]
[355822278,1741619440580,-150.0,9.878e-05,2]
[355822279,1741619440590,-3932.0,9.878e-05,2]
[355822280,1741619440601,-1113.0,9.878e-05,2]
[355822281,1741619440611,-1000.0,9.899e-05,2]
[355822282,1741619440622,-308.90015117,9.899e-05,2]
[355822283,1741619440632,-500.0,9.899e-05,2]
[355822284,1741619440642,-500.0,9.899e-05,2]
[355822285,1741619440651,-500.0,9.899e-05,2]
[355822286,1741619440661,-500.0,9.899e-05,2]
[355822287,1741619440670,-500.0,9.899e-05,2]
[355822288,1741619440680,-500.0,9.899e-05,2]
[355822289,1741619440690,-500.0,9.899e-05,2]
[355822290,1741619440700,-500.0,9.899e-05,2]
[355822291,1741619440713,-500.0,9.899e-05,2]
[355822292,1741619440723,-496.15692048,9.899e-05,2]
[355822293,1741619440733,-500.0,9.899e-05,2]
[355822294,1741619440743,-500.0,9.899e-05,2]
[355822295,1741619440752,-500.0,9.899e-05,2]
[355822296,1741619440763,-500.0,9.899e-05,2]
[355822297,1741619440773,-500.0,9.899e-05,2]
[355822298,1741619440783,-150.0,9.899e-05,2]
[355822299,1741619440793,-5000.0,9.9e-05,2]
[355822300,1741619440803,-2469.8719,9.9e-05,2]
[355822301,1741619440813,-1000.0,9.9e-05,2]
[355822302,1741619440823,-729.5135,9.9e-05,2]
[355822303,1741619440833,-1174.5222,9.9e-05,2]
[355822304,1741619440843,-36384.5748,9.9e-05,2]
[355822305,1741619440853,-356704.1575,9.9e-05,2]
[355822306,1741619440863,-517.8114,9.9e-05,2]
[355822307,1741619440873,-47992.9558,9.9e-05,2]
[355822308,1741619440883,-14354.863,9.9e-05,2]
[355822309,1741619440894,-13748.2789,9.9e-05,2]
[355822310,1741619440904,-263.9693,9.9e-05,2]
[355822311,1741619440914,-1062.0,9.942e-05,2]
[355822312,1741619440924,-171.192,9.95e-05,2]
[355822313,1741619440934,-3736.547,9.958e-05,2]
[355822314,1741619440944,-6774.0327022,9.994e-05,2]
[355822315,1741619440954,-1248.81683572,9.999e-05,3]
[355822316,1741619440967,-1000.0,9.999e-05,2]
[355822317,1741619440977,-1000.0,9.999e-05,2]
[355822318,1741619440987,-1000.0,9.999e-05,2]
[355822319,1741619440997,-1010.0,9.999e-05,2]
[355822320,1741619441006,-1000.0,9.999e-05,2]
[355822321,1741619441016,-1180.0,9.999e-05,2]
[355822322,1741619441027,-1000.0,9.999e-05,2]
[355822323,1741619441036,-855.0,9.999e-05,2]
[355822324,1741619441046,-1000.0,9.999e-05,2]
[355822325,1741619441056,-1000.0,9.999e-05,2]
[355822326,1741619441066,-1000.0,9.999e-05,2]
[355822327,1741619441076,-1000.0,9.999e-05,2]
[355822328,1741619441088,-1000.0,9.999e-05,2]
[355822329,1741619441099,-1325.47,9.999e-05,2]
[355822330,1741619441109,-1000.0,9.999e-05,2]
[355822331,1741619441119,-1000.0,9.999e-05,2]
[355822332,1741619441128,-1000.0,9.999e-05,2]
[355822333,1741619441138,-1460.0,0.0001,2]
[355822334,1741619441148,-156.69209502,0.0001,2]
[355822335,1741619441158,-115149.57990243,0.0001,2]
[355822336,1741619441167,-2069874.05687184,0.0001,2]
[355822337,1741619441182,-6911.09510315,0.0001,2]
[355822338,1741619441339,-5639.79345774,0.0001,2]
[355822339,1741619441352,-2725.40500004,0.0001,2]
[355822340,1741619441364,-66612.33705047,0.0001,2]
[355822376,1741619442999,-619020.76618014,0.0001,2]
[355822377,1741619443011,-7961.592,0.0001,2]
[355822378,1741619443023,-901.84078003,0.0001,2]
[355822379,1741619443035,-795.53474,0.0001,2]
[355822380,1741619443047,-9308.27486649,0.0001,2]
[355822394,1741619444019,-1319.2,0.0001,2]
[355822395,1741619444083,-1243.33479485,0.0001,2]
[355822396,1741619444095,-13476.69381819,0.0001,2]
[355822397,1741619444150,-13832.82995373,0.0001,2]
[355822398,1741619444163,-3438.02232,0.0001,2]
[355822399,1741619444175,-12735.0044037,0.0001,2]
[355822400,1741619444187,-3844.88313282,0.0001,2]
[355822401,1741619445835,-3981.65,0.0001,2]
[355822402,1741619445847,-6390.42188172,0.0001,2]
[355822403,1741619445859,-430.18684934,0.0001,2]
[355822404,1741619445874,-21042.87694452,0.0001,2]
[355822405,1741619445886,-788.6835,0.0001,2]
[355822406,1741619445898,-33368.43831084,0.0001,2]
[355822407,1741619445911,-506.28464956,0.0001,2]
[355822408,1741619445922,-609.53823585,0.0001,2]
[355822409,1741619445934,-553.56974129,0.0001,2]
[355822410,1741619445945,-292.87128114,0.0001,2]
[355822411,1741619445975,-2100.01677548,0.0001,2]
[355822412,1741619445986,-29238.75906275,0.0001,2]
[355822434,1741619446518,-663.02749647,0.0001,2]
[355822436,1741619446530,-15530.52442716,0.0001,2]
[355822438,1741619446542,-457.23918641,0.0001,2]
[355822443,1741619446584,-3701.92517562,0.0001,2]
[355822488,1741619575691,169.3,7.334e-05,2]
[355822489,1741619575873,169.3,8.556e-05,2]
[355822492,1741620220496,727.06,8.219e-05,2]
[355822494,1741620355062,102080.57775091,8.188e-05,2]
[355822495,1741620367506,8948.67097121,8e-05,2]
[355822496,1741620369060,200.34435999,8.669e-05,2]
[355822497,1741620484639,161.85,8.51e-05,2]
[355822499,1741620497530,164.90676282,8.467e-05,2]
[355822512,1741620561931,23900.0,8.496e-05,2]
[355822530,1741620632360,-300.0,8.867e-05,2]
[355822531,1741620632370,-1217.7796849,8.868e-05,2]
[355822532,1741620632382,-9577.12165009,8.868e-05,2]
[355822533,1741620632427,-400.0,8.868e-05,2]
[355822534,1741620632439,-524.92075,8.868e-05,2]
[355822535,1741620632451,-273.99999998,8.868e-05,2]
[355822541,1741620632500,-15340.68625243,8.868e-05,2]
[355822544,1741620632510,-2000.0,8.869e-05,2]
[355822547,1741620632519,-150.0,8.874e-05,2]
[355822549,1741620632529,-154.3,8.88e-05,2]
[355822551,1741620632539,-150.0,8.911e-05,2]